[Event "Early-Titled-Tuesday-Blitz-January-23-2024"]
[Site "Chess.com"]
[Date "2024.01.23"]
[Round "9"]
[White "mortngabriel"]
[Black "Martial2008"]
[Result "0-1"]
[WhiteElo "2526"]
[BlackElo "2667"]
[TimeControl "180+1"]
[EndTime "9:48:48 PST"]
[Termination "Martial2008 won on time"]

1. e4 {[%clk 0:03:00.9]} 1... e5 {[%clk 0:02:57.9]} 2. Nc3 {[%clk 0:03:00.3]}
2... Nc6 {[%clk 0:02:54.8]} 3. Bc4 {[%clk 0:03:00.3]} 3... Nf6 {[%clk
0:02:52.4]} 4. d3 {[%clk 0:03:00.5]} 4... Bb4 {[%clk 0:02:53.1]} 5. Ne2 {[%clk
0:03:00]} 5... d5 {[%clk 0:02:52.1]} 6. exd5 {[%clk 0:03:00.9]} 6... Nxd5 {[%clk
0:02:52.6]} 7. O-O {[%clk 0:03:00.9]} 7... Be6 {[%clk 0:02:51.2]} 8. Bxd5 {[%clk
0:02:53.7]} 8... Bxd5 {[%clk 0:02:52.1]} 9. f4 {[%clk 0:02:52.7]} 9... f6 {[%clk
0:02:50.9]} 10. fxe5 {[%clk 0:02:36]} 10... Nxe5 {[%clk 0:02:49.5]} 11. Nxd5
{[%clk 0:02:25]} 11... Qxd5 {[%clk 0:02:50.4]} 12. d4 {[%clk 0:02:24.5]} 12...
O-O-O {[%clk 0:02:36.5]} 13. c3 {[%clk 0:02:17.6]} 13... Bd6 {[%clk 0:02:25.8]}
14. Qa4 {[%clk 0:02:10.7]} 14... Nc6 {[%clk 0:02:24.3]} 15. Nf4 {[%clk
0:01:50.3]} 15... Bxf4 {[%clk 0:02:23.2]} 16. Bxf4 {[%clk 0:01:49.7]} 16... Rhe8
{[%clk 0:02:23.5]} 17. Rae1 {[%clk 0:01:48.3]} 17... Re4 {[%clk 0:02:21.3]} 18.
Qb3 {[%clk 0:01:28.1]} 18... Qxb3 {[%clk 0:02:18.9]} 19. axb3 {[%clk 0:01:29]}
19... Rde8 {[%clk 0:02:19.2]} 20. Rxe4 {[%clk 0:01:28.2]} 20... Rxe4 {[%clk
0:02:20.1]} 21. Bg3 {[%clk 0:01:21.1]} 21... Na5 {[%clk 0:02:11.3]} 22. b4
{[%clk 0:01:19.1]} 22... Nc4 {[%clk 0:02:10.8]} 23. Ra1 {[%clk 0:00:51.5]} 23...
a6 {[%clk 0:02:08]} 24. b3 {[%clk 0:00:43.5]} 24... Nd2 {[%clk 0:02:07.8]} 25.
Kf2 {[%clk 0:00:33.6]} 25... Nxb3 {[%clk 0:02:04.7]} 26. Rd1 {[%clk 0:00:34.5]}
26... b6 {[%clk 0:02:00.6]} 27. h4 {[%clk 0:00:34.1]} 27... h5 {[%clk
0:01:49.7]} 28. Kf3 {[%clk 0:00:34.1]} 28... Re7 {[%clk 0:01:42.4]} 29. Bf4
{[%clk 0:00:32.8]} 29... a5 {[%clk 0:01:39.7]} 30. bxa5 {[%clk 0:00:31]} 30...
bxa5 {[%clk 0:01:40.6]} 31. Bc1 {[%clk 0:00:23.3]} 31... a4 {[%clk 0:01:35.1]}
32. Ba3 {[%clk 0:00:23.1]} 32... Re6 {[%clk 0:01:35]} 33. d5 {[%clk 0:00:16.9]}
33... Re5 {[%clk 0:01:31.8]} 34. c4 {[%clk 0:00:17]} 34... Kd7 {[%clk
0:01:25.6]} 35. c5 {[%clk 0:00:15.5]} 35... c6 {[%clk 0:01:25.3]} 36. dxc6+
{[%clk 0:00:15.2]} 36... Kxc6 {[%clk 0:01:26.2]} 37. Rd6+ {[%clk 0:00:14.7]}
37... Kc7 {[%clk 0:01:26.5]} 38. Ra6 {[%clk 0:00:14.5]} 38... Nxc5 {[%clk
0:01:25.5]} 39. Bxc5 {[%clk 0:00:13.7]} 39... Rxc5 {[%clk 0:01:26.2]} 40. Rxa4
{[%clk 0:00:14.2]} 40... Kd6 {[%clk 0:01:26.4]} 41. g3 {[%clk 0:00:14.5]} 41...
Ke6 {[%clk 0:01:26.2]} 42. Kf4 {[%clk 0:00:13.3]} 42... Kf7 {[%clk 0:01:23.4]}
43. Rb4 {[%clk 0:00:13.6]} 43... Kg6 {[%clk 0:01:23.5]} 44. Kf3 {[%clk
0:00:13.8]} 44... Rf5+ {[%clk 0:01:22.9]} 45. Kg2 {[%clk 0:00:13.3]} 45... Re5
{[%clk 0:01:22]} 46. Ra4 {[%clk 0:00:13.7]} 46... Kf5 {[%clk 0:01:21.9]} 47. Kf3
{[%clk 0:00:13.8]} 47... Rd5 {[%clk 0:01:19]} 48. Rb4 {[%clk 0:00:13.7]} 48...
Ke5 {[%clk 0:01:19]} 49. Rb7 {[%clk 0:00:10.9]} 49... Rd3+ {[%clk 0:01:16.8]}
50. Kf2 {[%clk 0:00:10.2]} 50... g6 {[%clk 0:01:17.2]} 51. Rb5+ {[%clk
0:00:08.2]} 51... Rd5 {[%clk 0:01:15.8]} 52. Rb4 {[%clk 0:00:08.3]} 52... Rd4
{[%clk 0:01:14.6]} 53. Rb6 {[%clk 0:00:07.2]} 53... Kf5 {[%clk 0:01:13.4]} 54.
Ke3 {[%clk 0:00:06]} 54... Ra4 {[%clk 0:01:12.1]} 55. Kf3 {[%clk 0:00:04.5]}
55... Ra3+ {[%clk 0:01:12.3]} 56. Kg2 {[%clk 0:00:04.9]} 56... Re3 {[%clk
0:01:12.8]} 57. Rb5+ {[%clk 0:00:04.9]} 57... Re5 {[%clk 0:01:11.9]} 58. Rb4
{[%clk 0:00:04.7]} 58... Ke6 {[%clk 0:01:10.7]} 59. Ra4 {[%clk 0:00:05.1]} 59...
Rf5 {[%clk 0:01:10.9]} 60. Rb4 {[%clk 0:00:05.5]} 60... Kd5 {[%clk 0:01:07.8]}
61. Ra4 {[%clk 0:00:04.8]} 61... Ke5 {[%clk 0:01:05.9]} 62. Ra5+ {[%clk
0:00:05]} 62... Ke4 {[%clk 0:01:06.1]} 63. Ra4+ {[%clk 0:00:05.5]} 63... Kd5
{[%clk 0:00:59.9]} 64. Ra5+ {[%clk 0:00:05.9]} 64... Ke6 {[%clk 0:01:00.3]} 65.
Ra6+ {[%clk 0:00:06.4]} 65... Kf7 {[%clk 0:01:00.8]} 66. Ra7+ {[%clk 0:00:07]}
66... Kg8 {[%clk 0:01:00.2]} 67. Rb7 {[%clk 0:00:07]} 67... Kf8 {[%clk
0:00:59.9]} 68. Rc7 {[%clk 0:00:07.1]} 68... Re5 {[%clk 0:01:00.4]} 69. Rb7
{[%clk 0:00:07.6]} 69... Re7 {[%clk 0:01:01]} 70. Rb6 {[%clk 0:00:08]} 70... Kf7
{[%clk 0:01:01.4]} 71. Ra6 {[%clk 0:00:08.4]} 71... Rd7 {[%clk 0:01:01.9]} 72.
Rb6 {[%clk 0:00:08.6]} 72... Ke7 {[%clk 0:01:02.4]} 73. Ra6 {[%clk 0:00:08.6]}
73... Rd6 {[%clk 0:01:03.1]} 74. Ra7+ {[%clk 0:00:08.3]} 74... Ke6 {[%clk
0:01:03.6]} 75. Ra5 {[%clk 0:00:07.9]} 75... Rd5 {[%clk 0:01:03.6]} 76. Ra6+
{[%clk 0:00:06.4]} 76... Kf5 {[%clk 0:01:02.2]} 77. Ra4 {[%clk 0:00:07.3]} 77...
Ke5 {[%clk 0:01:02.1]} 78. Rb4 {[%clk 0:00:07.7]} 78... Rd4 {[%clk 0:01:02.4]}
79. Rb5+ {[%clk 0:00:06.8]} 79... Ke4 {[%clk 0:01:02.1]} 80. Rb6 {[%clk
0:00:07.3]} 80... Rd2+ {[%clk 0:01:02.1]} 81. Kh3 {[%clk 0:00:07.2]} 81... Kf5
{[%clk 0:01:02.3]} 82. Rb5+ {[%clk 0:00:07.2]} 82... Ke6 {[%clk 0:00:59]} 83.
Rb6+ {[%clk 0:00:07.6]} 83... Kf7 {[%clk 0:00:59.4]} 84. Rb7+ {[%clk 0:00:07.8]}
84... Ke8 {[%clk 0:00:59.3]} 85. Ra7 {[%clk 0:00:08]} 85... Kf8 {[%clk
0:00:59.4]} 86. Rb7 {[%clk 0:00:07.9]} 86... Re2 {[%clk 0:00:59.7]} 87. Ra7
{[%clk 0:00:08.1]} 87... Re7 {[%clk 0:01:00.1]} 88. Ra6 {[%clk 0:00:08.7]} 88...
Kg7 {[%clk 0:01:00.3]} 89. Rb6 {[%clk 0:00:09.1]} 89... Re2 {[%clk 0:00:59.7]}
90. Rb5 {[%clk 0:00:09.2]} 90... Rf2 {[%clk 0:01:00.1]} 91. Rc5 {[%clk
0:00:09.4]} 91... Kh6 {[%clk 0:00:59.4]} 92. Rb5 {[%clk 0:00:09.7]} 92... Re2
{[%clk 0:00:54.7]} 93. Rc5 {[%clk 0:00:09.1]} 93... g5 {[%clk 0:00:52.7]} 94.
hxg5+ {[%clk 0:00:08.7]} 94... fxg5 {[%clk 0:00:53.6]} 95. Rc6+ {[%clk
0:00:09.2]} 95... Kg7 {[%clk 0:00:54.1]} 96. Rb6 {[%clk 0:00:09.7]} 96... Kf7
{[%clk 0:00:50.9]} 97. Ra6 {[%clk 0:00:10]} 97... Re6 {[%clk 0:00:45.3]} 98. Ra5
{[%clk 0:00:10]} 98... Kf6 {[%clk 0:00:45.4]} 99. Rb5 {[%clk 0:00:10.1]} 99...
Re5 {[%clk 0:00:45.5]} 100. Rb6+ {[%clk 0:00:09.9]} 100... Kf5 {[%clk
0:00:45.9]} 101. Rb8 {[%clk 0:00:09.5]} 101... Ke4 {[%clk 0:00:42.9]} 102. Rh8
{[%clk 0:00:07.3]} 102... Kf3 {[%clk 0:00:43.1]} 103. Rf8+ {[%clk 0:00:05.6]}
103... Ke4 {[%clk 0:00:43.2]} 104. Rh8 {[%clk 0:00:06.2]} 104... g4+ {[%clk
0:00:34.3]} 105. Kh4 {[%clk 0:00:06.1]} 105... Kf3 {[%clk 0:00:34.9]} 106. Rf8+
{[%clk 0:00:04.8]} 106... Kg2 {[%clk 0:00:34]} 107. Rb8 {[%clk 0:00:05]} 107...
Re2 {[%clk 0:00:22.5]} 108. Rb3 {[%clk 0:00:04.5]} 108... Re5 {[%clk 0:00:17.6]}
109. Rc3 {[%clk 0:00:04.2]} 109... Rf5 {[%clk 0:00:16.6]} 110. Rb3 {[%clk
0:00:03.7]} 110... Rf3 {[%clk 0:00:14.7]} 111. Rb2+ {[%clk 0:00:04]} 111... Rf2
{[%clk 0:00:14.8]} 112. Rb3 {[%clk 0:00:04.5]} 112... Rf5 {[%clk 0:00:10.5]}
113. Rc3 {[%clk 0:00:03.7]} 113... Rf3 {[%clk 0:00:03.1]} 114. Rc2+ {[%clk
0:00:03.4]} 114... Rf2 {[%clk 0:00:03.7]} 115. Rc3 {[%clk 0:00:04]} 115... Kh2
{[%clk 0:00:04]} 116. Rb3 {[%clk 0:00:03.6]} 116... Rg2 {[%clk 0:00:02.5]} 117.
Kxh5 {[%clk 0:00:01.3]} 117... Rxg3 {[%clk 0:00:02.5]} 118. Rb2+ {[%clk
0:00:01.4]} 118... Kh3 {[%clk 0:00:02.9]} 0-1

[Event "Early-Titled-Tuesday-Blitz-January-23-2024"]
[Site "Chess.com"]
[Date "2024.01.23"]
[Round "10"]
[White "ExchangeAB"]
[Black "Slovineanu"]
[Result "0-1"]
[WhiteElo "2414"]
[BlackElo "2423"]
[TimeControl "180+1"]
[EndTime "9:51:11 PST"]
[Termination "Slovineanu won by resignation"]

1. d4 {[%clk 0:03:00.9]} 1... Nf6 {[%clk 0:02:57.8]} 2. Nf3 {[%clk 0:03:01.2]}
2... e6 {[%clk 0:02:57.1]} 3. c3 {[%clk 0:03:01.3]} 3... d5 {[%clk 0:02:56.8]}
4. Bf4 {[%clk 0:03:00.7]} 4... c5 {[%clk 0:02:56.2]} 5. e3 {[%clk 0:03:00.1]}
5... Bd6 {[%clk 0:02:56.2]} 6. dxc5 {[%clk 0:02:58.3]} 6... Bxf4 {[%clk
0:02:33]} 7. e4 {[%clk 0:02:58.1]} 7... Nxe4 {[%clk 0:02:24.8]} 8. b4 {[%clk
0:02:40.6]} 8... O-O {[%clk 0:02:22.8]} 9. g3 {[%clk 0:02:40.2]} 9... Bh6 {[%clk
0:02:19.5]} 10. Be2 {[%clk 0:02:40.1]} 10... a5 {[%clk 0:02:14.5]} 11. a3 {[%clk
0:02:33.6]} 11... Qf6 {[%clk 0:02:11.4]} 0-1

[Event "Early-Titled-Tuesday-Blitz-January-23-2024"]
[Site "Chess.com"]
[Date "2024.01.23"]
[Round "10"]
[White "Logman74"]
[Black "NovakRatko"]
[Result "1-0"]
[WhiteElo "2474"]
[BlackElo "2340"]
[TimeControl "180+1"]
[EndTime "9:51:50 PST"]
[Termination "Logman74 won by checkmate"]

1. e4 {[%clk 0:03:00.9]} 1... d5 {[%clk 0:02:59.6]} 2. exd5 {[%clk 0:03:00.4]}
2... c6 {[%clk 0:02:59.8]} 3. dxc6 {[%clk 0:02:59.7]} 3... Nxc6 {[%clk
0:03:00.7]} 4. Bc4 {[%clk 0:02:58.1]} 4... e5 {[%clk 0:03:00.1]} 5. d3 {[%clk
0:02:56.9]} 5... Bc5 {[%clk 0:03:00]} 6. Nf3 {[%clk 0:02:55.4]} 6... Nf6 {[%clk
0:03:00.3]} 7. Nc3 {[%clk 0:02:54]} 7... Bg4 {[%clk 0:02:59.9]} 8. h3 {[%clk
0:02:52.9]} 8... Bh5 {[%clk 0:03:00.2]} 9. Bg5 {[%clk 0:02:52]} 9... Bb4 {[%clk
0:02:56.3]} 10. Bd2 {[%clk 0:02:36.4]} 10... Nd4 {[%clk 0:02:52.7]} 11. g4
{[%clk 0:02:34.2]} 11... Nxf3+ {[%clk 0:02:51.1]} 12. Qxf3 {[%clk 0:02:34.5]}
12... Bg6 {[%clk 0:02:52]} 13. Qxb7 {[%clk 0:02:26.9]} 13... Rb8 {[%clk
0:02:49.6]} 14. Qc6+ {[%clk 0:02:07.5]} 14... Nd7 {[%clk 0:02:42.9]} 15. h4
{[%clk 0:02:07.6]} 15... h6 {[%clk 0:02:35.1]} 16. O-O-O {[%clk 0:02:04.8]}
16... O-O {[%clk 0:02:30.9]} 17. Qxg6 {[%clk 0:02:01.6]} 17... Qa5 {[%clk
0:02:24.2]} 18. Bxh6 {[%clk 0:01:58.3]} 18... Bxc3 {[%clk 0:02:14]} 19. Qxg7#
{[%clk 0:01:55.7]} 1-0

[Event "Early-Titled-Tuesday-Blitz-January-23-2024"]
[Site "Chess.com"]
[Date "2024.01.23"]
[Round "10"]
[White "Gabrielian_Artur"]
[Black "Practical-Play"]
[Result "1-0"]
[WhiteElo "2761"]
[BlackElo "2514"]
[TimeControl "180+1"]
[EndTime "9:51:56 PST"]
[Termination "Gabrielian_Artur won by resignation"]

1. d4 {[%clk 0:03:00.9]} 1... Nf6 {[%clk 0:02:56.8]} 2. Bg5 {[%clk 0:03:00]}
2... Ne4 {[%clk 0:02:51.6]} 3. h4 {[%clk 0:02:59.5]} 3... d5 {[%clk 0:02:50.1]}
4. e3 {[%clk 0:02:58.7]} 4... c5 {[%clk 0:02:46.3]} 5. Nd2 {[%clk 0:02:57.4]}
5... Nc6 {[%clk 0:02:45]} 6. c3 {[%clk 0:02:54.5]} 6... f6 {[%clk 0:02:42.6]} 7.
Bf4 {[%clk 0:02:53.5]} 7... e5 {[%clk 0:02:42.9]} 8. dxe5 {[%clk 0:02:45.5]}
8... fxe5 {[%clk 0:02:42.8]} 9. Nxe4 {[%clk 0:02:34.3]} 9... exf4 {[%clk
0:02:42]} 10. Qh5+ {[%clk 0:02:33.8]} 10... Ke7 {[%clk 0:01:58.6]} 11. O-O-O
{[%clk 0:02:30.1]} 11... Qa5 {[%clk 0:01:38.5]} 12. Qxd5 {[%clk 0:02:22.3]} 1-0

[Event "Early-Titled-Tuesday-Blitz-January-23-2024"]
[Site "Chess.com"]
[Date "2024.01.23"]
[Round "10"]
[White "Chesstiger64"]
[Black "PattyCastillo"]
[Result "1-0"]
[WhiteElo "2217"]
[BlackElo "1964"]
[TimeControl "180+1"]
[EndTime "9:52:27 PST"]
[Termination "Chesstiger64 won by resignation"]

1. d4 {[%clk 0:03:00.9]} 1... d5 {[%clk 0:01:43]} 2. Nf3 {[%clk 0:02:58.3]} 2...
Nf6 {[%clk 0:01:42.4]} 3. e3 {[%clk 0:02:58.5]} 3... c5 {[%clk 0:01:41.4]} 4. c3
{[%clk 0:02:57.3]} 4... Nc6 {[%clk 0:01:41.2]} 5. Nbd2 {[%clk 0:02:57.5]} 5...
e6 {[%clk 0:01:39.1]} 6. Bd3 {[%clk 0:02:56.7]} 6... Bd6 {[%clk 0:01:37]} 7. O-O
{[%clk 0:02:57]} 7... O-O {[%clk 0:01:36.5]} 8. dxc5 {[%clk 0:02:57.3]} 8...
Bxc5 {[%clk 0:01:36]} 9. e4 {[%clk 0:02:57.8]} 9... dxe4 {[%clk 0:01:34]} 10.
Nxe4 {[%clk 0:02:58.7]} 10... Nxe4 {[%clk 0:01:32.4]} 11. Bxe4 {[%clk
0:02:59.6]} 11... Qxd1 {[%clk 0:01:31.1]} 12. Rxd1 {[%clk 0:02:59.8]} 12... g6
{[%clk 0:01:31.2]} 13. Bh6 {[%clk 0:02:50.2]} 13... Re8 {[%clk 0:01:28.2]} 14.
b4 {[%clk 0:02:50.3]} 14... Bf8 {[%clk 0:01:27.4]} 15. Bxf8 {[%clk 0:02:48.7]}
15... Kxf8 {[%clk 0:01:27.9]} 16. a3 {[%clk 0:02:48.7]} 16... a6 {[%clk
0:01:26.9]} 17. c4 {[%clk 0:02:48.9]} 17... Ke7 {[%clk 0:01:25.1]} 18. Bxc6
{[%clk 0:02:44.7]} 18... bxc6 {[%clk 0:01:24.8]} 19. c5 {[%clk 0:02:45]} 19...
a5 {[%clk 0:01:23.2]} 20. Ne5 {[%clk 0:02:44.9]} 20... Bb7 {[%clk 0:01:20.3]}
21. Rd7+ {[%clk 0:02:37]} 21... Kf6 {[%clk 0:01:20]} 22. Re1 {[%clk 0:02:27.7]}
22... Re7 {[%clk 0:01:19.5]} 23. Ng4+ {[%clk 0:02:26.5]} 1-0

[Event "Early-Titled-Tuesday-Blitz-January-23-2024"]
[Site "Chess.com"]
[Date "2024.01.23"]
[Round "10"]
[White "jcmesafischer"]
[Black "FMVolodymyrSakun"]
[Result "0-1"]
[WhiteElo "2326"]
[BlackElo "2517"]
[TimeControl "180+1"]
[EndTime "9:53:34 PST"]
[Termination "FMVolodymyrSakun won by resignation"]

1. e4 {[%clk 0:03:00.9]} 1... d6 {[%clk 0:02:38.7]} 2. d4 {[%clk 0:02:59.4]}
2... Nf6 {[%clk 0:02:38.6]} 3. Nc3 {[%clk 0:02:58.5]} 3... g6 {[%clk 0:02:38.6]}
4. f4 {[%clk 0:02:56.2]} 4... Bg7 {[%clk 0:02:38.1]} 5. Bd3 {[%clk 0:02:55]}
5... O-O {[%clk 0:02:34.5]} 6. Nf3 {[%clk 0:02:53.1]} 6... Na6 {[%clk
0:02:34.5]} 7. O-O {[%clk 0:02:49.4]} 7... c5 {[%clk 0:02:34.6]} 8. d5 {[%clk
0:02:43.9]} 8... Nc7 {[%clk 0:02:32.6]} 9. a4 {[%clk 0:02:39.7]} 9... b6 {[%clk
0:02:30.8]} 10. Bc4 {[%clk 0:02:28.8]} 10... Ng4 {[%clk 0:02:10.5]} 11. h3
{[%clk 0:02:26]} 11... Nh6 {[%clk 0:02:10.4]} 12. g4 {[%clk 0:02:17.2]} 12... f5
{[%clk 0:02:05.8]} 13. g5 {[%clk 0:02:12.3]} 13... Nf7 {[%clk 0:01:58.6]} 14. e5
{[%clk 0:02:08]} 14... dxe5 {[%clk 0:01:53.4]} 15. fxe5 {[%clk 0:02:08.9]} 15...
Nxe5 {[%clk 0:01:53.4]} 16. Nxe5 {[%clk 0:02:05.6]} 16... Bxe5 {[%clk
0:01:52.9]} 17. d6+ {[%clk 0:02:04.4]} 17... Ne6 {[%clk 0:01:50.1]} 18. Qd5
{[%clk 0:01:55.1]} 18... Qxd6 {[%clk 0:01:40.7]} 19. Qxa8 {[%clk 0:01:48.9]}
19... Qd4+ {[%clk 0:01:34.8]} 20. Kh1 {[%clk 0:01:40.9]} 20... Qxc4 {[%clk
0:01:34.4]} 21. Be3 {[%clk 0:01:40.5]} 21... Qh4 {[%clk 0:01:20.8]} 22. Qf3
{[%clk 0:01:30.1]} 22... Bb7 {[%clk 0:01:14.8]} 23. Nd5 {[%clk 0:01:24.9]} 23...
Bxd5 {[%clk 0:01:13.2]} 0-1

[Event "Early-Titled-Tuesday-Blitz-January-23-2024"]
[Site "Chess.com"]
[Date "2024.01.23"]
[Round "10"]
[White "Pliukha_Mikhail"]
[Black "GatoRojo150"]
[Result "1-0"]
[WhiteElo "2752"]
[BlackElo "2611"]
[TimeControl "180+1"]
[EndTime "9:53:50 PST"]
[Termination "Pliukha_Mikhail won by resignation"]

1. e4 {[%clk 0:02:49]} 1... e5 {[%clk 0:02:59.5]} 2. Nf3 {[%clk 0:02:47.5]} 2...
Nc6 {[%clk 0:02:59.4]} 3. d4 {[%clk 0:02:48.4]} 3... exd4 {[%clk 0:02:59.8]} 4.
Bc4 {[%clk 0:02:49.3]} 4... Nf6 {[%clk 0:02:59.8]} 5. O-O {[%clk 0:02:44.4]}
5... Nxe4 {[%clk 0:02:59.7]} 6. Re1 {[%clk 0:02:44.5]} 6... d5 {[%clk 0:03:00]}
7. Nc3 {[%clk 0:02:45.4]} 7... dxc3 {[%clk 0:02:40.9]} 8. Bxd5 {[%clk
0:02:45.6]} 8... f5 {[%clk 0:02:40.6]} 9. Ng5 {[%clk 0:02:45.6]} 9... Bd6 {[%clk
0:02:26.3]} 10. Nxe4 {[%clk 0:00:48.4]} 10... fxe4 {[%clk 0:02:22.5]} 11. Rxe4+
{[%clk 0:00:40.8]} 11... Ne7 {[%clk 0:01:38.1]} 12. Qf3 {[%clk 0:00:40.7]} 12...
Bxh2+ {[%clk 0:01:22]} 13. Kxh2 {[%clk 0:00:41.6]} 13... Qxd5 {[%clk 0:01:22.4]}
14. Rxe7+ {[%clk 0:00:41.5]} 14... Kxe7 {[%clk 0:01:18.7]} 15. Qxd5 {[%clk
0:00:40.7]} 1-0

[Event "Early-Titled-Tuesday-Blitz-January-23-2024"]
[Site "Chess.com"]
[Date "2024.01.23"]
[Round "10"]
[White "Janosik"]
[Black "Natalya_Buksa"]
[Result "1-0"]
[WhiteElo "2856"]
[BlackElo "2607"]
[TimeControl "180+1"]
[EndTime "9:54:01 PST"]
[Termination "Janosik won by resignation"]

1. d4 {[%clk 0:02:50.2]} 1... d5 {[%clk 0:02:59.9]} 2. c4 {[%clk 0:02:50.1]}
2... e6 {[%clk 0:03:00.3]} 3. Nc3 {[%clk 0:02:50.3]} 3... Nf6 {[%clk 0:03:00.8]}
4. cxd5 {[%clk 0:02:51]} 4... exd5 {[%clk 0:03:01.7]} 5. Bg5 {[%clk 0:02:51]}
5... c6 {[%clk 0:03:00.7]} 6. e3 {[%clk 0:02:51.5]} 6... Nbd7 {[%clk 0:03:01.3]}
7. Bd3 {[%clk 0:02:52]} 7... Be7 {[%clk 0:03:01.9]} 8. Qc2 {[%clk 0:02:51.5]}
8... Nh5 {[%clk 0:03:00.5]} 9. Bxe7 {[%clk 0:02:50.8]} 9... Qxe7 {[%clk
0:03:01.4]} 10. Nf3 {[%clk 0:02:51.3]} 10... g6 {[%clk 0:02:59.7]} 11. h3 {[%clk
0:02:51]} 11... Nb6 {[%clk 0:02:56.2]} 12. O-O-O {[%clk 0:02:51.2]} 12... Be6
{[%clk 0:02:56.5]} 13. Kb1 {[%clk 0:02:51.4]} 13... O-O-O {[%clk 0:02:56.6]} 14.
Rc1 {[%clk 0:02:51.8]} 14... Ng7 {[%clk 0:02:53.4]} 15. Ka1 {[%clk 0:02:51.8]}
15... Bf5 {[%clk 0:02:50.7]} 16. Rhd1 {[%clk 0:02:52.1]} 16... Kb8 {[%clk
0:02:49.7]} 17. Na4 {[%clk 0:02:49.1]} 17... Nxa4 {[%clk 0:02:33.5]} 18. Qxa4
{[%clk 0:02:50]} 18... Bxd3 {[%clk 0:02:33.4]} 19. Rxd3 {[%clk 0:02:49.8]} 19...
f6 {[%clk 0:02:29.9]} 20. Ra3 {[%clk 0:02:49.7]} 20... a6 {[%clk 0:02:28.9]} 21.
Rb3 {[%clk 0:02:50.1]} 21... Ka7 {[%clk 0:02:26.8]} 22. Ne1 {[%clk 0:02:47.3]}
22... Ne6 {[%clk 0:02:25.4]} 23. Nd3 {[%clk 0:02:47.6]} 23... Rc8 {[%clk
0:02:17.4]} 24. Qa5 {[%clk 0:02:38.8]} 24... Qc7 {[%clk 0:02:13.8]} 25. Qb4
{[%clk 0:02:39.1]} 25... Rhd8 {[%clk 0:02:04.8]} 26. h4 {[%clk 0:02:37.8]} 26...
h5 {[%clk 0:02:02.7]} 27. g3 {[%clk 0:02:38]} 27... Rd7 {[%clk 0:02:01.6]} 28.
Rbc3 {[%clk 0:02:35.9]} 28... Qd6 {[%clk 0:01:56.3]} 29. Qa5 {[%clk 0:02:34.6]}
29... Qc7 {[%clk 0:01:52.3]} 30. Qa4 {[%clk 0:02:33.8]} 30... Qd6 {[%clk
0:01:51.3]} 31. b4 {[%clk 0:02:26.7]} 31... b5 {[%clk 0:01:39.7]} 32. Qc2 {[%clk
0:02:22.7]} 32... Rdc7 {[%clk 0:01:38.9]} 33. a4 {[%clk 0:02:20.4]} 33... Kb7
{[%clk 0:01:36.7]} 34. Ra3 {[%clk 0:02:18.8]} 34... Ra8 {[%clk 0:01:34.3]} 35.
Kb2 {[%clk 0:02:18.9]} 35... Rcc8 {[%clk 0:01:32.6]} 36. Rca1 {[%clk 0:02:14.8]}
36... Qe7 {[%clk 0:01:30.9]} 37. Rc3 {[%clk 0:02:13.9]} 37... Qd6 {[%clk
0:01:29]} 38. Qe2 {[%clk 0:02:09.7]} 38... Qe7 {[%clk 0:01:25.5]} 39. Qf3 {[%clk
0:02:06.9]} 39... Rab8 {[%clk 0:01:25.2]} 40. Rca3 {[%clk 0:02:02.7]} 40... Ra8
{[%clk 0:01:19.7]} 41. g4 {[%clk 0:01:56.2]} 41... hxg4 {[%clk 0:01:17.9]} 42.
Qxg4 {[%clk 0:01:57.1]} 42... Qf7 {[%clk 0:01:18.3]} 43. Qxe6 {[%clk 0:01:54.1]}
43... Qxe6 {[%clk 0:01:15.9]} 44. Nc5+ {[%clk 0:01:54.4]} 44... Kb6 {[%clk
0:01:16.2]} 45. Nxe6 {[%clk 0:01:55.3]} 45... Rh8 {[%clk 0:01:15.6]} 46. axb5
{[%clk 0:01:53.8]} 46... cxb5 {[%clk 0:01:15.8]} 47. Nc5 {[%clk 0:01:54]} 47...
Rxh4 {[%clk 0:01:15.7]} 48. Rxa6+ {[%clk 0:01:54]} 48... Rxa6 {[%clk 0:01:16.6]}
49. Rxa6+ {[%clk 0:01:54.3]} 49... Kc7 {[%clk 0:01:17.5]} 50. Rxf6 {[%clk
0:01:54.9]} 50... g5 {[%clk 0:01:17.1]} 51. Kc3 {[%clk 0:01:54.6]} 1-0

[Event "Early-Titled-Tuesday-Blitz-January-23-2024"]
[Site "Chess.com"]
[Date "2024.01.23"]
[Round "10"]
[White "monomita"]
[Black "yaguigor"]
[Result "1-0"]
[WhiteElo "2830"]
[BlackElo "2638"]
[TimeControl "180+1"]
[EndTime "9:54:03 PST"]
[Termination "monomita won by resignation"]

1. d4 {[%clk 0:03:00.9]} 1... d5 {[%clk 0:03:00.1]} 2. c4 {[%clk 0:03:00.3]}
2... c6 {[%clk 0:02:59.8]} 3. cxd5 {[%clk 0:03:00.8]} 3... cxd5 {[%clk
0:02:59.2]} 4. Nc3 {[%clk 0:03:01.7]} 4... Nf6 {[%clk 0:02:58.8]} 5. Bf4 {[%clk
0:03:02.1]} 5... Nc6 {[%clk 0:02:58.6]} 6. Nf3 {[%clk 0:03:02]} 6... Bf5 {[%clk
0:02:58.2]} 7. e3 {[%clk 0:03:02.2]} 7... e6 {[%clk 0:02:58.3]} 8. Ne5 {[%clk
0:03:02.6]} 8... Nxe5 {[%clk 0:02:53.1]} 9. dxe5 {[%clk 0:03:03.5]} 9... Nd7
{[%clk 0:02:53.7]} 10. e4 {[%clk 0:03:03.8]} 10... dxe4 {[%clk 0:02:51.3]} 11.
Qa4 {[%clk 0:02:56.3]} 11... Qb6 {[%clk 0:02:16.3]} 12. Rd1 {[%clk 0:02:48.9]}
12... O-O-O {[%clk 0:02:11.1]} 13. Bb5 {[%clk 0:02:12.9]} 13... Nc5 {[%clk
0:01:45.7]} 14. Rxd8+ {[%clk 0:02:11.6]} 14... Kxd8 {[%clk 0:01:40.6]} 15. Qd4+
{[%clk 0:02:07.3]} 15... Kc8 {[%clk 0:01:31.8]} 16. O-O {[%clk 0:02:05.2]} 16...
Be7 {[%clk 0:01:29.3]} 17. b4 {[%clk 0:01:53.3]} 17... Rd8 {[%clk 0:01:14.9]}
18. bxc5 {[%clk 0:01:41.5]} 18... Bxc5 {[%clk 0:01:15.4]} 19. Qc4 {[%clk
0:01:35.5]} 19... Rd4 {[%clk 0:01:15.5]} 20. Na4 {[%clk 0:01:30.4]} 1-0